bitfinex/quotes_SOLUSD_20240718
["timestamp","ask_amount","ask_price","bid_price","bid_amount"]
[1721339961617,15.3,158.65,158.6,15.3]
[1721339961811,15.3,158.65,158.56,6.91233179]
[1721339961996,15.3,158.64,158.59,15.3]
[1721339963803,6.3019,158.69,158.61,15.3]
[1721339964009,15.3,158.66,158.61,15.3]
[1721339964600,6.3019,158.69,158.61,15.3]
[1721339964802,15.3,158.66,158.6,15.3]
[1721339968624,15.3,158.65,158.6,15.3]
[1721339968827,15.3,158.65,158.57,45.0]
[1721339969121,15.3,158.65,158.59,15.3]
[1721339971603,15.3,158.65,158.6,15.3]
[1721339972124,15.3,158.64,158.59,15.3]
[1721339972314,15.3,158.65,158.59,15.3]
[1721339974505,15.3,158.66,158.6,15.3]
[1721339976207,15.3,158.65,158.59,15.3]
[1721339980533,15.3,158.66,158.6,15.3]
[1721339987621,15.3,158.66,158.59,15.3]
[1721339987832,15.3,158.65,158.59,15.3]
[1721339995140,15.3,158.64,158.57,45.0]
[1721339995445,15.3,158.63,158.58,20.0]
[1721339995640,15.3,158.62,158.58,20.0]
[1721339996617,15.3,158.63,158.58,20.0]
[1721339997044,6.3025,158.67,158.56,6.6068]
[1721339997045,15.3,158.61,158.56,6.6068]
[1721339997342,15.3,158.59,158.54,8.57750455]
[1721339997638,15.3,158.57,158.52,6.0234]
[1721339997843,15.3,158.55,158.51,15.9665]
[1721339998138,15.3,158.56,158.51,15.9665]
[1721339998337,6.3054,158.6,158.51,32.52805394]
[1721339998643,15.3,158.58,158.52,15.3]
[1721339998819,15.3,158.57,158.52,15.3]
[1721339999221,15.3,158.57,158.51,15.9665]
[1721339999418,15.3,158.57,158.52,80.3]
[1721340000469,6.3044,158.62,158.52,80.3]
[1721340000973,35.532,158.65,158.53,15.3]
[1721340001140,35.532,158.65,158.52,65.0]
[1721340001141,20.0,158.64,158.55,15.3]
[1721340001339,15.3,158.59,158.54,21.6791]
[1721340001574,15.3,158.58,158.54,6.3791]
[1721340002483,15.3,158.58,158.52,80.3]
[1721340002650,6.304,158.63,158.54,15.3]
[1721340002837,15.3,158.59,158.54,15.3]
[1721340003037,6.3037,158.64,158.54,15.3]
[1721340003243,15.3,158.6,158.54,15.3]
[1721340003489,15.3,158.59,158.54,15.3]
[1721340003970,15.3,158.58,158.53,15.3]
[1721340004177,15.3,158.58,158.54,20.0]
[1721340004352,15.3,158.56,158.52,20.0]
[1721340004870,15.3,158.57,158.52,20.0]
[1721340005247,15.3,158.57,158.52,35.3]
[1721340005746,15.3,158.56,158.52,20.0]
[1721340006079,15.3,158.55,158.51,20.0]
[1721340006286,15.3,158.55,158.5,20.0]
[1721340006572,15.3,158.53,158.5,20.0]
[1721340006776,15.3,158.54,158.5,20.0]
[1721340007386,15.3,158.51,158.45,28.84705411]
[1721340007596,15.3,158.51,158.45,22.78695075]
[1721340007803,15.3,158.51,158.45,30.17180455]
[1721340008458,15.3,158.5,158.45,30.17180455]
[1721340008988,15.3,158.5,158.46,20.0]
[1721340010588,15.3,158.51,158.46,20.0]
[1721340011689,15.3,158.51,158.45,6.2943]
[1721340011896,15.3,158.51,158.45,21.5943]
[1721340012265,15.3,158.5,158.45,21.5943]
[1721340013278,15.3,158.5,158.45,6.2943]
[1721340013488,6.308,158.53,158.45,21.5943]
[1721340013683,15.3,158.5,158.45,21.5943]
[1721340014004,15.3,158.5,158.45,6.2943]
[1721340014164,6.308,158.53,158.45,6.2943]
[1721340014579,15.3,158.5,158.45,6.2943]
[1721340014796,15.3,158.5,158.45,21.5943]
[1721340015415,15.3,158.5,158.45,6.2943]
[1721340020117,15.3,158.5,158.44,15.3]
[1721340020118,15.3,158.49,158.43,15.4451]
[1721340020327,15.3,158.48,158.44,20.0]
[1721340020819,15.3,158.47,158.43,15.4451]
[1721340021424,15.3,158.48,158.43,30.7451]
[1721340021927,15.3,158.48,158.43,15.4451]
[1721340022393,15.3,158.48,158.43,32.00737267]
[1721340022794,15.3,158.48,158.43,30.7451]
[1721340023316,15.3,158.47,158.43,15.4451]
[1721340023806,15.3,158.46,158.43,15.4451]
[1721340024424,15.3,158.46,158.41,21.5892]
[1721340024599,15.3,158.47,158.42,15.3]
[1721340024925,15.3,158.46,158.41,21.5892]
[1721340028004,15.3,158.46,158.41,6.2892]
[1721340028199,15.3,158.46,158.41,21.5892]
[1721340029617,16.1549,158.53,158.44,15.3]
[1721340029808,15.3,158.49,158.44,15.3]
[1721340030007,15.3,158.48,158.43,15.3]
[1721340030222,16.1549,158.53,158.42,15.3]
[1721340030223,15.3,158.47,158.42,15.3]
[1721340030397,15.3,158.47,158.43,20.0]
[1721340031935,15.3,158.47,158.42,20.0]
[1721340032602,6.3091,158.5,158.42,20.0]
[1721340032603,15.3,158.45,158.42,20.0]
[1721340032806,15.3,158.45,158.4,35.3]
[1721340033400,15.3,158.46,158.41,15.3]
[1721340033626,6.3092,158.5,158.41,15.3]
[1721340033938,15.3,158.47,158.41,15.3]
[1721340034436,15.3,158.46,158.41,15.3]
[1721340035742,15.3,158.46,158.41,16.56241598]
[1721340036039,15.3,158.46,158.41,15.3]
[1721340038545,15.3,158.46,158.4,20.0]
[1721340038713,15.3,158.46,158.41,15.3]
[1721340040713,15.3,158.46,158.41,16.56234081]
[1721340041227,15.3,158.46,158.41,15.3]
[1721340043643,6.3092,158.5,158.4,35.3]
[1721340044014,15.3,158.46,158.4,35.3]
[1721340045749,15.3,158.46,158.4,36.56242756]
[1721340046228,15.3,158.45,158.4,35.3]
[1721340046649,15.3,158.45,158.4,36.56241048]
[1721340046853,15.3,158.45,158.4,35.3]
[1721340047347,15.3,158.45,158.4,20.0]
[1721340047542,15.3,158.43,158.4,20.0]
[1721340047737,15.3,158.43,158.39,15.1506]
[1721340047938,15.3,158.44,158.39,30.4506]
[1721340048451,15.3,158.42,158.37,14.81370455]
[1721340048631,15.3,158.42,158.38,20.0]
[1721340049461,15.3,158.43,158.38,20.0]
[1721340049759,15.3,158.43,158.38,35.3]
[1721340049934,6.3109,158.46,158.39,1.26256153]
[1721340049935,15.3,158.44,158.39,1.26256153]
[1721340050148,15.3,158.4,158.37,6.2362]
[1721340050355,15.3,158.4,158.35,30.4039]
[1721340051235,15.3,158.38,158.33,21.3372]
[1721340051469,15.3,158.37,158.33,6.0372]
[1721340051665,15.3,158.36,158.33,6.0372]
[1721340052163,15.3,158.36,158.31,30.4284]
[1721340052471,15.3,158.35,158.31,15.1284]
[1721340052676,15.3,158.34,158.31,15.1284]
[1721340053342,15.3,158.34,158.29,21.5166]
[1721340054169,15.3,158.34,158.3,20.0]
[1721340054468,15.3,158.35,158.3,20.0]
[1721340055353,15.3,158.34,158.3,20.0]
[1721340057466,15.3,158.35,158.3,20.0]
[1721340058470,15.3,158.35,158.3,35.3]
[1721340059470,15.3,158.34,158.3,20.0]
[1721340061058,15.3,158.35,158.3,35.3]
[1721340062148,6.3136,158.39,158.3,35.3]
[1721340062348,15.3,158.35,158.3,20.0]
[1721340062547,15.3,158.35,158.3,35.3]
[1721340062759,6.3132,158.4,158.3,35.3]
[1721340062974,20.0,158.39,158.32,15.3]
[1721340063279,15.3,158.37,158.32,15.3]
[1721340063446,15.3,158.38,158.32,15.3]
[1721340064146,15.3,158.38,158.31,1.26306665]
[1721340064373,15.3,158.33,158.29,6.2166]
[1721340064873,6.3148,158.36,158.27,15.0426]
[1721340065072,15.3,158.32,158.27,30.3426]
[1721340065776,15.3,158.33,158.28,16.56349017]
[1721340066166,15.3,158.32,158.27,30.3426]
[1721340067463,15.3,158.33,158.27,30.3426]
[1721340068288,22.313,158.37,158.28,16.56349451]
[1721340068591,6.57045392,158.4,158.31,15.3]
[1721340068752,15.3,158.37,158.31,15.3]
[1721340068956,15.3,158.36,158.31,15.3]
[1721340069270,15.3,158.36,158.3,15.3]
[1721340069785,15.4231,158.41,158.33,15.3]
[1721340069975,15.3,158.38,158.32,15.3]
[1721340070160,15.3,158.37,158.32,15.3]
[1721340070576,15.3,158.37,158.32,16.56311667]
[1721340071476,22.8415375,158.45,158.33,30.7256]
[1721340071671,20.0,158.44,158.34,15.3]
[1721340071862,15.3,158.39,158.34,15.3]
[1721340072061,15.3,158.39,158.33,30.7256]
[1721340072279,6.3118,158.44,158.34,16.56287765]
[1721340072484,6.3119,158.43,158.35,15.3]
[1721340072685,15.3,158.41,158.35,15.3]
[1721340072895,15.3,158.4,158.35,15.3]
[1721340073490,15.3,158.39,158.34,15.3]
[1721340073997,6.3124,158.42,158.34,15.3]
[1721340074195,15.3,158.39,158.34,15.3]
[1721340075201,15.3,158.4,158.35,16.56284509]
[1721340075589,15.3,158.4,158.35,15.3]
[1721340076800,15.3,158.4,158.34,15.3]
[1721340077004,6.3118,158.44,158.35,15.3]
[1721340077205,29.1526375,158.45,158.37,15.3]
[1721340077369,15.3,158.42,158.37,15.3]
[1721340077671,6.3112,158.45,158.38,15.3]
[1721340077873,15.3,158.43,158.38,15.3]
[1721340078073,67.76354291,158.48,158.38,15.3]
[1721340078379,15.3,158.44,158.39,15.3]
[1721340078596,15.3,158.44,158.4,4.71672558]
[1721340078898,6.3104,158.47,158.4,20.01672558]
[1721340079194,15.3,158.44,158.4,4.71672558]
[1721340081207,15.3,158.43,158.4,4.71672558]
[1721340082021,15.3,158.44,158.4,4.71672558]
[1721340082299,6.3107,158.46,158.4,4.71672558]
[1721340082614,15.3,158.43,158.4,4.71672558]
[1721340082794,15.3,158.44,158.4,4.71672558]
[1721340083804,15.3,158.45,158.4,20.01672558]
[1721340083998,15.3,158.46,158.4,20.01672558]
[1721340084206,15.3,158.46,158.4,21.27920252]
[1721340084410,6.3088,158.51,158.43,15.3]
[1721340084574,15.3,158.49,158.43,15.3]
[1721340084883,15.3,158.49,158.44,15.3]
[1721340085276,15.3,158.5,158.44,15.3]
[1721340086424,15.3,158.48,158.43,6.187]
[1721340086580,15.3,158.47,158.43,6.187]
[1721340087077,15.3,158.48,158.43,6.187]
[1721340088412,15.3,158.48,158.43,21.487]
[1721340088915,15.3,158.49,158.44,15.3]
[1721340091605,6.3088,158.51,158.43,6.187]
[1721340091606,15.3,158.48,158.43,21.487]
[1721340093607,15.3,158.49,158.44,15.3]
[1721340094303,6.3084,158.52,158.44,15.3]
[1721340094502,15.3,158.49,158.44,15.3]
[1721340096529,15.3,158.48,158.43,21.487]
[1721340097425,15.3,158.49,158.43,21.487]
[1721340098630,6.3084,158.52,158.43,21.487]
[1721340098807,6.56318737,158.54,158.48,15.3]
[1721340099127,6.3055,158.59,158.51,15.3]
[1721340099314,15.3,158.56,158.51,15.3]
[1721340099502,15.4333,158.61,158.51,15.3]
[1721340099503,6.3056,158.59,158.51,15.3]
[1721340099705,6.3051,158.6,158.51,15.3]
[1721340099901,15.3,158.59,158.53,15.3]
[1721340100521,15.3,158.57,158.52,16.0523]
[1721340100734,15.3,158.56,158.52,16.0523]
[1721340102209,6.3055,158.59,158.52,16.0523]
[1721340102504,15.3,158.56,158.52,16.0523]
[1721340103227,15.3,158.56,158.55,4.71672558]
[1721340103626,15.3,158.57,158.55,4.71672558]
[1721340103821,15.3,158.57,158.56,4.71672558]
[1721340104227,15.4333,158.61,158.56,4.71672558]
[1721340104727,15.3,158.58,158.56,4.71672558]
[1721340106436,20.0,158.6,158.56,4.71672558]
[1721340106631,15.3,158.58,158.56,4.71672558]
[1721340106838,6.3041,158.63,158.56,4.71672558]
[1721340107025,71.3043,158.62,158.56,4.71672558]
[1721340107213,15.3,158.59,158.56,4.71672558]
[1721340111826,18.94,158.69,158.57,21.5441]
[1721340112138,6.3041,158.63,158.57,6.2441]
[1721340112320,18.94,158.66,158.57,6.2441]
[1721340112517,15.3,158.61,158.56,4.71672558]
[1721340112712,15.3,158.57,158.56,4.71672558]
[1721340116414,15.3,158.58,158.56,4.71672558]
[1721340116724,15.1925,158.63,158.56,20.01672558]
[1721340116918,15.3,158.61,158.56,20.01672558]
[1721340117617,15.3,158.62,158.57,15.3]
[1721340119235,15.3,158.62,158.56,20.01672558]
[1721340121019,15.3,158.61,158.56,4.71672558]
[1721340121224,15.3,158.58,158.56,4.71672558]
[1721340121736,15.3,158.59,158.56,4.71672558]
[1721340123239,15.3,158.58,158.56,4.71672558]
[1721340123438,15.3,158.57,158.56,4.71672558]
[1721340125333,21.6063,158.57,158.56,4.71672558]
[1721340125641,36.9063,158.57,158.56,4.71672558]
[1721340125838,81.9063,158.57,158.56,4.71672558]
[1721340127665,66.6063,158.57,158.56,4.71672558]
[1721340131558,6.3058,158.59,158.56,4.71672558]
[1721340131763,15.3,158.58,158.56,4.71672558]
[1721340131971,15.3,158.6,158.56,4.71672558]
[1721340132454,15.3,158.59,158.56,4.71672558]
[1721340133068,15.3,158.6,158.58,4.71672558]
[1721340133738,15.3,158.59,158.58,4.71672558]
[1721340133938,15.3,158.59,158.54,15.3]
[1721340135155,15.3,158.58,158.53,6.2168]
[1721340135661,15.3,158.57,158.53,6.2168]
[1721340137346,15.3,158.58,158.53,6.2168]
[1721340137952,15.3,158.56,158.51,15.3]
[1721340138151,15.3,158.56,158.52,20.0]
[1721340138543,15.3,158.55,158.52,20.0]
[1721340138867,15.3,158.55,158.51,20.0]
[1721340139454,15.3,158.52,158.48,6.4862]
[1721340139657,15.3,158.51,158.48,6.4862]
[1721340140372,15.3,158.52,158.48,6.4862]
[1721340140960,15.3,158.52,158.47,15.3]
[1721340141165,15.3,158.52,158.48,20.0]
[1721340141362,15.3,158.51,158.46,30.4587]
[1721340144577,15.3,158.51,158.46,15.1587]
[1721340146496,15.3,158.51,158.45,15.3]
[1721340146772,15.3,158.51,158.46,20.0]
[1721340147472,15.3,158.48,158.44,6.3018]
[1721340147684,15.3,158.47,158.42,31.2874]
[1721340147844,15.3,158.47,158.42,15.9874]
[1721340148456,15.3,158.47,158.42,31.2874]
[1721340149550,15.3,158.46,158.42,15.9874]
[1721340149866,15.3,158.46,158.4,6.6403]
[1721340150075,15.3,158.44,158.41,20.0]
[1721340151193,15.3,158.43,158.38,15.3701]
[1721340151410,15.3,158.42,158.38,15.3701]
[1721340152365,15.3,158.42,158.36,15.3]
[1721340152560,15.3,158.41,158.36,15.3]
[1721340152781,15.3,158.41,158.37,20.0]
[1721340152992,15.3,158.4,158.37,20.0]
[1721340153174,15.3,158.4,158.35,21.8716]
[1721340153175,15.3,158.4,158.35,6.5716]
[1721340153887,15.3,158.38,158.33,16.2704]
[1721340154095,15.3,158.38,158.33,31.5704]
[1721340154891,15.3,158.38,158.33,15.3]
[1721340155074,15.3,158.36,158.31,21.6949]
[1721340156400,6.3132,158.4,158.31,6.3949]
[1721340156895,6.3132,158.4,158.32,20.0]
[1721340157075,49.61,158.42,158.32,20.0]
[1721340157076,6.3127,158.41,158.32,20.0]
[1721340157271,49.61,158.42,158.32,21.26305291]
[1721340157471,65.0,158.41,158.32,20.0]
[1721340159001,6.3132,158.4,158.32,20.0]
[1721340159784,6.3135,158.39,158.32,20.0]
[1721340159967,6.3131,158.4,158.32,20.0]
[1721340160383,6.3318,158.43,158.32,20.0]
[1721340160614,15.552,158.44,158.32,20.0]
[1721340161899,45.0,158.43,158.32,20.0]
[1721340162107,51.312,158.43,158.32,20.0]
[1721340162276,15.552,158.44,158.33,45.0]
[1721340162277,21.8635,158.44,158.33,45.0]
[1721340162474,21.8635,158.44,158.34,1.26280858]
[1721340162676,21.8635,158.44,158.34,20.0]
[1721340164115,15.552,158.44,158.34,20.0]
[1721340164285,21.8636,158.44,158.34,1.26281264]
[1721340165617,21.8636,158.44,158.32,20.0]
[1721340165804,21.8636,158.44,158.33,1.26284013]
[1721340166312,6.3119,158.43,158.34,1.26283726]
[1721340166498,6.3119,158.43,158.32,20.0]
[1721340167093,21.8636,158.44,158.33,1.26284644]
[1721340167516,45.0,158.43,158.32,20.0]
[1721340167724,6.312,158.43,158.34,1.26284609]
[1721340167903,6.312,158.43,158.35,15.9669]
[1721340168799,6.3115,158.44,158.35,15.9669]
[1721340168999,36.9438,158.47,158.35,15.9669]
[1721340169218,6.3114,158.45,158.36,1.262666]
[1721340169436,26.3107,158.46,158.37,6.2249]
[1721340169934,6.3107,158.46,158.37,6.2249]
[1721340170100,6.3107,158.46,158.38,21.2625727]
[1721340171505,6.3107,158.46,158.38,20.0]
[1721340171704,6.3112,158.45,158.38,20.0]
[1721340173002,6.3115,158.44,158.38,20.0]
[1721340173603,6.3112,158.45,158.38,20.0]
[1721340173933,30.67,158.44,158.37,6.2249]
[1721340174101,6.3127,158.41,158.37,6.2249]
[1721340174839,6.3124,158.42,158.37,6.2249]
[1721340175000,30.67,158.41,158.31,15.2854]
[1721340175204,6.3136,158.39,158.31,15.2854]
[1721340175506,6.3132,158.4,158.31,15.2854]
[1721340176029,6.3148,158.36,158.24,22.59233179]
[1721340176333,30.67,158.38,158.24,22.59233179]
[1721340176334,6.3144,158.37,158.24,22.59233179]
[1721340176837,26.3128,158.41,158.28,0.30553179]
[1721340177004,6.3132,158.4,158.3,15.5699]
[1721340177322,6.3132,158.4,158.24,0.30553179]
[1721340177323,70.2108,158.39,158.24,0.30553179]
[1721340177502,30.67,158.37,158.24,0.30553179]
[1721340178240,6.3148,158.36,158.24,0.30553179]
[1721340178404,30.67,158.34,158.19,0.30553179]
[1721340178928,6.316,158.33,158.19,6.8705655]
[1721340179524,6.3163,158.32,158.19,6.8705655]
[1721340179703,6.3159,158.33,158.2,20.0]
[1721340180330,36.9855,158.34,158.21,0.30553179]
[1721340180531,6.3159,158.33,158.21,45.0]
[1721340180738,6.3165,158.32,158.22,20.0]
[1721340181031,6.3165,158.32,158.23,45.0]
[1721340181222,6.317,158.31,158.24,20.0]
[1721340181408,6.317,158.31,158.2,0.34]
[1721340181607,6.317,158.31,158.2,45.34]
[1721340181809,6.3164,158.32,158.2,45.34]
[1721340182028,6.3172,158.3,158.19,6.56503371]
[1721340182333,12.3399,158.29,158.18,6.5588]
[1721340182508,6.3182,158.28,158.18,6.5588]
[1721340182704,6.318,158.28,158.18,6.5588]
[1721340182900,6.0223,158.29,158.19,1.2640271]
[1721340183097,6.0223,158.29,158.18,6.5588]
[1721340183327,51.3179,158.28,158.18,6.5588]
[1721340183730,51.3179,158.28,158.19,20.0]
[1721340184105,51.3179,158.28,158.19,21.26407241]
[1721340185009,45.0,158.28,158.19,21.26407241]
[1721340185919,25.2992,158.33,158.19,20.0]
[1721340186106,26.3166,158.32,158.2,46.26380415]
[1721340186307,20.0,158.32,158.21,21.26379778]
[1721340187029,26.3164,158.32,158.21,20.0]
[1721340187332,6.3168,158.31,158.21,20.0]
[1721340187629,6.3168,158.31,158.22,1.26375323]
[1721340187831,20.0,158.32,158.21,20.30553179]
[1721340188031,26.3163,158.32,158.21,20.0]
[1721340188212,36.9859,158.33,158.21,20.30553179]
[1721340188417,36.9859,158.33,158.22,45.0]
[1721340188728,30.67,158.33,158.23,20.0]
[1721340188932,22.127,158.35,158.24,23.1755]
[1721340189228,30.67,158.33,158.24,23.1755]
[1721340189409,6.3168,158.31,158.24,23.1755]
[1721340189613,6.3164,158.32,158.24,23.1755]
[1721340190026,6.3167,158.31,158.24,23.1755]
[1721340190229,6.3171,158.3,158.24,23.1755]
[1721340190429,6.3167,158.31,158.24,23.1755]
[1721340192710,6.3164,158.32,158.24,23.1755]
[1721340193440,6.3169,158.31,158.24,23.1755]
[1721340193738,6.3171,158.3,158.24,23.1755]
[1721340194041,45.0,158.3,158.24,23.1755]
[1721340194336,49.61,158.33,158.24,23.1755]
[1721340194627,63.94,158.32,158.24,23.1755]
[1721340194829,6.3167,158.31,158.24,23.1755]
[1721340195335,51.3164,158.32,158.24,23.1755]
[1721340196019,45.0,158.32,158.24,23.1755]
[1721340196940,51.3163,158.32,158.24,23.1755]
[1721340197613,30.67,158.33,158.24,23.1755]
[1721340198031,36.9859,158.33,158.24,23.1755]
[1721340198412,30.67,158.33,158.24,23.1755]
[1721340198612,6.56339616,158.36,158.24,23.1755]
[1721340198823,6.56339616,158.36,158.25,65.0]
[1721340199018,30.67,158.38,158.25,65.0]
[1721340199538,30.67,158.38,158.25,65.30553179]
[1721340199719,30.67,158.38,158.25,65.0]
[1721340200320,15.34,158.33,158.28,15.34]
[1721340200719,15.34,158.31,158.25,80.34]
[1721340200923,15.34,158.31,158.26,15.34]
[1721340201130,15.34,158.31,158.27,20.0]
[1721340201533,15.34,158.3,158.27,20.0]
[1721340201733,15.34,158.28,158.24,23.1755]
[1721340202320,6.3167,158.31,158.24,23.1755]
[1721340202523,6.3164,158.32,158.24,23.1755]
[1721340202723,45.0,158.31,158.24,23.1755]
[1721340204452,6.3171,158.3,158.24,23.1755]
[1721340205326,51.3168,158.31,158.24,23.1755]
[1721340205745,6.3172,158.3,158.24,23.1755]
[1721340206124,45.0,158.31,158.19,1.2639054]
[1721340206125,41.5407,158.29,158.19,1.2639054]
[1721340206329,6.3184,158.27,158.15,0.8106226]
[1721340207146,6.3187,158.26,158.15,0.8106226]
[1721340207848,6.3184,158.27,158.15,0.8106226]
[1721340208031,49.64,158.25,158.15,0.8106226]
[1721340208226,83.94,158.24,158.15,0.8106226]
[1721340208433,65.0,158.24,158.15,0.8106226]
[1721340208636,6.32,158.23,158.15,0.8106226]
[1721340209248,71.3196,158.24,158.15,0.8106226]
[1721340209734,71.3196,158.24,158.15,20.8106226]
[1721340209940,6.3208,158.21,158.15,20.8106226]
[1721340210326,30.7,158.22,158.15,20.8106226]
[1721340210525,37.0205,158.22,158.15,20.8106226]
[1721340211728,6.3199,158.23,158.15,20.8106226]
[1721340212047,6.3196,158.24,158.15,20.8106226]
[1721340212837,15.299,158.27,158.15,20.8106226]
[1721340213043,15.299,158.27,158.16,46.26409771]
[1721340213233,15.299,158.27,158.17,20.0]
[1721340213431,21.6176,158.27,158.17,20.0]
[1721340213634,21.6176,158.27,158.18,1.26410006]
[1721340214131,40.7544,158.3,158.18,1.26405368]
[1721340214333,30.7,158.25,158.15,20.8106226]
[1721340214650,6.3196,158.24,158.15,20.8106226]
[1721340214841,6.3199,158.23,158.15,20.8106226]
[1721340215946,30.7,158.25,158.15,20.8106226]
[1721340216142,6.3199,158.23,158.15,20.8106226]
[1721340216455,45.0,158.24,158.15,20.8106226]
[1721340216748,6.3204,158.22,158.15,20.8106226]
[1721340219057,45.0,158.24,158.15,20.8106226]
[1721340219251,6.321,158.21,158.15,20.8106226]
[1721340219565,49.64,158.22,158.15,0.8106226]
[1721340219750,6.3224,158.17,158.15,0.8106226]
[1721340220068,18.94,158.2,158.15,0.8106226]
[1721340220069,6.3227,158.16,158.15,0.8106226]
[1721340220231,30.7,158.19,158.15,0.8106226]
[1721340220433,63.94,158.18,158.15,0.8106226]
[1721340220737,6.3227,158.16,158.15,0.8106226]
[1721340220933,6.3224,158.17,158.15,0.8106226]
[1721340221252,6.3213,158.2,158.15,0.8106226]
[1721340221448,20.0,158.21,158.15,0.8106226]
[1721340221654,6.3206,158.22,158.15,0.8106226]
[1721340222953,6.3207,158.21,158.15,0.8106226]
[1721340223139,6.3202,158.23,158.15,22.6409226]
[1721340224357,30.7,158.25,158.15,22.6409226]
[1721340224559,6.3208,158.21,158.15,22.6409226]
[1721340224760,6.3212,158.2,158.15,22.6409226]
[1721340224962,6.3216,158.19,158.15,22.6409226]
[1721340225144,6.3212,158.2,158.15,7.3290226]
[1721340226081,6.3213,158.2,158.15,0.8106226]
[1721340226277,45.0,158.19,158.15,0.8106226]
[1721340226659,45.0,158.2,158.15,0.8106226]
[1721340227289,51.3213,158.2,158.15,0.8106226]
[1721340228383,45.0,158.2,158.15,0.8106226]
[1721340229362,6.3207,158.21,158.15,0.8106226]
[1721340229564,26.3211,158.2,158.15,0.8106226]
[1721340229998,20.0,158.2,158.15,0.8106226]
[1721340230488,20.0,158.21,158.15,0.8106226]
[1721340230672,45.0,158.2,158.15,0.8106226]
[1721340230987,6.3221,158.18,158.15,0.8106226]
[1721340232092,6.3223,158.17,158.15,0.8106226]
[1721340232271,6.3227,158.16,158.15,0.8106226]
[1721340232473,6.3223,158.17,158.15,0.8106226]
[1721340233279,6.3219,158.18,158.15,0.8106226]
[1721340233692,45.0,158.2,158.15,0.8106226]
[1721340233878,20.0,158.21,158.16,6.2795]
[1721340234395,20.0,158.22,158.16,6.2795]
[1721340234975,26.3203,158.22,158.16,6.2795]
[1721340235175,6.3203,158.22,158.16,6.2795]
[1721340235381,20.0,158.21,158.16,6.2795]
[1721340236202,6.3203,158.22,158.16,6.2795]
[1721340236602,6.32,158.23,158.16,6.2795]
[1721340236906,6.3205,158.22,158.16,6.2795]
[1721340237906,30.7,158.27,158.17,17.43085346]
[1721340238096,37.0183,158.27,158.17,37.43085346]
[1721340238275,6.3187,158.26,158.17,36.1666]
[1721340238481,30.7,158.27,158.17,36.1666]
[1721340238482,6.3193,158.25,158.17,36.1666]
[1721340238695,6.3187,158.26,158.17,36.1666]
[1721340239405,6.3192,158.25,158.17,36.1666]
[1721340240410,6.3203,158.22,158.17,16.1666]
[1721340242706,6.3199,158.23,158.17,16.1666]
[1721340243908,6.3203,158.22,158.17,16.1666]
[1721340244680,6.3207,158.21,158.17,16.1666]
[1721340245006,45.0,158.2,158.15,0.8106226]